Workbook

Sheet 关于
B1: 关于本模板
B2: 使用此模板跟踪您每月费用和储蓄。
B3: 在表格中输入费用明细和每月收入以计算储蓄。
B4: 显示费用和储蓄的圆环图是自动更新的。
B5: 注意：
B6: 预算圆环工作表的 A 列中提供了额外的说明。这段文本已被有意隐藏。要删除文本，请选择 A 列，然后选择“删除”。要取消隐藏文本，请选择 A 列，然后更改字体颜色。
B7: 若要了解有关表格的更多信息，请在此表内按 SHIFT 键，然后按 F10 键，选择“表格”选项，然后选择“替代文本”。

Sheet 月度收支表
A1: 在此工作表中创建预算圆环。工作表的标题位于右侧单元格内，D1 单元格内是提示。此列中单元格中是关如何使用此工作表的其他有用说明。箭头向下开始。 | B1: 月度收支表 | D1: 填写此模板中的表格。该图表将跟踪每月与月收入相关的支出。它还会计算百分比，显示将存和已存比例。
A2: 每月收入标签位于右侧单元格中，C2 单元格中是显示费用和储蓄的圆环图，G2 单元格中是储蓄金额标签。 | B2: 月收入 | C2: 此单元格中是显示费用和储蓄比例的圆环图。 | G2: 储蓄金额
A3: 在右侧的单元格中输入每月收入。G3 单元格中自动计算出储蓄金额。下一条指令在 A6 单元格中。 | B3: ¥5,738 | G3: =Savings -> ¥2,777
G4: 自动计算的值
B6: 费用 | C6: 类别 | D6: 金额 | E6: 频度 | F6: 每月金额 | G6: 总额百分比
B7: 保险 | C7: 交通费 | D7: ¥300 | E7: 每 6 个月 | F7: =IF(花费[[#This Row],[金额]]>0,IF(花费[[#This Row],[频度]]<>"",ROUND(IF(花费[[#This Row],[频度]]="每月一次",花费[金额],IF(花费[[#This Row],[频度]]="每周",花费[[#This Row],[金额]]*4,IF(花费[[#This Row],[频度]]="每季度一次",花费[[#This Row],[金额]]/3,IF(花费[[#This Row],[频度]]="每 6 个月",花费[[#This Row],[金额]]/6,IF(花费[[#This Row],[频度]]="每年一次",花费[[#This Row],[金额]]/12,IF(花费[[#This Row],[频度]]="每隔一周",花费[[#This Row],[金额]]*2,IF(花费[[#This Row],[频度]]="每隔一个月",花费[[#This Row],[金额]]/2,""))))))),0),""),"") -> ¥50 | G7: =IF(花费[[#This Row],[每月金额]]<>"",花费[[#This Row],[每月金额]]/Income,"") -> 1%
B8: 煤气 | C8: 交通费 | D8: ¥25 | E8: 每周 | F8: =IF(花费[[#This Row],[金额]]>0,IF(花费[[#This Row],[频度]]<>"",ROUND(IF(花费[[#This Row],[频度]]="每月一次",花费[金额],IF(花费[[#This Row],[频度]]="每周",花费[[#This Row],[金额]]*4,IF(花费[[#This Row],[频度]]="每季度一次",花费[[#This Row],[金额]]/3,IF(花费[[#This Row],[频度]]="每 6 个月",花费[[#This Row],[金额]]/6,IF(花费[[#This Row],[频度]]="每年一次",花费[[#This Row],[金额]]/12,IF(花费[[#This Row],[频度]]="每隔一周",花费[[#This Row],[金额]]*2,IF(花费[[#This Row],[频度]]="每隔一个月",花费[[#This Row],[金额]]/2,""))))))),0),""),"") -> ¥100 | G8: =IF(花费[[#This Row],[每月金额]]<>"",花费[[#This Row],[每月金额]]/Income,"") -> 2%
B9: 车款支付 | C9: 交通费 | D9: ¥200 | E9: 每月一次 | F9: =IF(花费[[#This Row],[金额]]>0,IF(花费[[#This Row],[频度]]<>"",ROUND(IF(花费[[#This Row],[频度]]="每月一次",花费[金额],IF(花费[[#This Row],[频度]]="每周",花费[[#This Row],[金额]]*4,IF(花费[[#This Row],[频度]]="每季度一次",花费[[#This Row],[金额]]/3,IF(花费[[#This Row],[频度]]="每 6 个月",花费[[#This Row],[金额]]/6,IF(花费[[#This Row],[频度]]="每年一次",花费[[#This Row],[金额]]/12,IF(花费[[#This Row],[频度]]="每隔一周",花费[[#This Row],[金额]]*2,IF(花费[[#This Row],[频度]]="每隔一个月",花费[[#This Row],[金额]]/2,""))))))),0),""),"") -> ¥200 | G9: =IF(花费[[#This Row],[每月金额]]<>"",花费[[#This Row],[每月金额]]/Income,"") -> 3%
B10: 按揭 | C10: 家居 | D10: ¥1,600 | E10: 每月一次 | F10: =IF(花费[[#This Row],[金额]]>0,IF(花费[[#This Row],[频度]]<>"",ROUND(IF(花费[[#This Row],[频度]]="每月一次",花费[金额],IF(花费[[#This Row],[频度]]="每周",花费[[#This Row],[金额]]*4,IF(花费[[#This Row],[频度]]="每季度一次",花费[[#This Row],[金额]]/3,IF(花费[[#This Row],[频度]]="每 6 个月",花费[[#This Row],[金额]]/6,IF(花费[[#This Row],[频度]]="每年一次",花费[[#This Row],[金额]]/12,IF(花费[[#This Row],[频度]]="每隔一周",花费[[#This Row],[金额]]*2,IF(花费[[#This Row],[频度]]="每隔一个月",花费[[#This Row],[金额]]/2,""))))))),0),""),"") -> ¥1,600 | G10: =IF(花费[[#This Row],[每月金额]]<>"",花费[[#This Row],[每月金额]]/Income,"") -> 28%
B11: 有线网络 | C11: 家居 | D11: ¥60 | E11: 每月一次 | F11: =IF(花费[[#This Row],[金额]]>0,IF(花费[[#This Row],[频度]]<>"",ROUND(IF(花费[[#This Row],[频度]]="每月一次",花费[金额],IF(花费[[#This Row],[频度]]="每周",花费[[#This Row],[金额]]*4,IF(花费[[#This Row],[频度]]="每季度一次",花费[[#This Row],[金额]]/3,IF(花费[[#This Row],[频度]]="每 6 个月",花费[[#This Row],[金额]]/6,IF(花费[[#This Row],[频度]]="每年一次",花费[[#This Row],[金额]]/12,IF(花费[[#This Row],[频度]]="每隔一周",花费[[#This Row],[金额]]*2,IF(花费[[#This Row],[频度]]="每隔一个月",花费[[#This Row],[金额]]/2,""))))))),0),""),"") -> ¥60 | G11: =IF(花费[[#This Row],[每月金额]]<>"",花费[[#This Row],[每月金额]]/Income,"") -> 1%
B12: 电影之夜 | C12: 娱乐 | D12: ¥70 | E12: 每月一次 | F12: =IF(花费[[#This Row],[金额]]>0,IF(花费[[#This Row],[频度]]<>"",ROUND(IF(花费[[#This Row],[频度]]="每月一次",花费[金额],IF(花费[[#This Row],[频度]]="每周",花费[[#This Row],[金额]]*4,IF(花费[[#This Row],[频度]]="每季度一次",花费[[#This Row],[金额]]/3,IF(花费[[#This Row],[频度]]="每 6 个月",花费[[#This Row],[金额]]/6,IF(花费[[#This Row],[频度]]="每年一次",花费[[#This Row],[金额]]/12,IF(花费[[#This Row],[频度]]="每隔一周",花费[[#This Row],[金额]]*2,IF(花费[[#This Row],[频度]]="每隔一个月",花费[[#This Row],[金额]]/2,""))))))),0),""),"") -> ¥70 | G12: =IF(花费[[#This Row],[每月金额]]<>"",花费[[#This Row],[每月金额]]/Income,"") -> 1%
B13: 运动鞋 | C13: 杂项 | D13: ¥300 | E13: 每年一次 | F13: =IF(花费[[#This Row],[金额]]>0,IF(花费[[#This Row],[频度]]<>"",ROUND(IF(花费[[#This Row],[频度]]="每月一次",花费[金额],IF(花费[[#This Row],[频度]]="每周",花费[[#This Row],[金额]]*4,IF(花费[[#This Row],[频度]]="每季度一次",花费[[#This Row],[金额]]/3,IF(花费[[#This Row],[频度]]="每 6 个月",花费[[#This Row],[金额]]/6,IF(花费[[#This Row],[频度]]="每年一次",花费[[#This Row],[金额]]/12,IF(花费[[#This Row],[频度]]="每隔一周",花费[[#This Row],[金额]]*2,IF(花费[[#This Row],[频度]]="每隔一个月",花费[[#This Row],[金额]]/2,""))))))),0),""),"") -> ¥25 | G13: =IF(花费[[#This Row],[每月金额]]<>"",花费[[#This Row],[每月金额]]/Income,"") -> 0%
B14: 狗粮 | C14: 杂项 | D14: ¥60 | E14: 每月一次 | F14: =IF(花费[[#This Row],[金额]]>0,IF(花费[[#This Row],[频度]]<>"",ROUND(IF(花费[[#This Row],[频度]]="每月一次",花费[金额],IF(花费[[#This Row],[频度]]="每周",花费[[#This Row],[金额]]*4,IF(花费[[#This Row],[频度]]="每季度一次",花费[[#This Row],[金额]]/3,IF(花费[[#This Row],[频度]]="每 6 个月",花费[[#This Row],[金额]]/6,IF(花费[[#This Row],[频度]]="每年一次",花费[[#This Row],[金额]]/12,IF(花费[[#This Row],[频度]]="每隔一周",花费[[#This Row],[金额]]*2,IF(花费[[#This Row],[频度]]="每隔一个月",花费[[#This Row],[金额]]/2,""))))))),0),""),"") -> ¥60 | G14: =IF(花费[[#This Row],[每月金额]]<>"",花费[[#This Row],[每月金额]]/Income,"") -> 1%
B15: 宠物保险 | C15: 杂项 | D15: ¥70 | E15: 每年一次 | F15: =IF(花费[[#This Row],[金额]]>0,IF(花费[[#This Row],[频度]]<>"",ROUND(IF(花费[[#This Row],[频度]]="每月一次",花费[金额],IF(花费[[#This Row],[频度]]="每周",花费[[#This Row],[金额]]*4,IF(花费[[#This Row],[频度]]="每季度一次",花费[[#This Row],[金额]]/3,IF(花费[[#This Row],[频度]]="每 6 个月",花费[[#This Row],[金额]]/6,IF(花费[[#This Row],[频度]]="每年一次",花费[[#This Row],[金额]]/12,IF(花费[[#This Row],[频度]]="每隔一周",花费[[#This Row],[金额]]*2,IF(花费[[#This Row],[频度]]="每隔一个月",花费[[#This Row],[金额]]/2,""))))))),0),""),"") -> ¥6 | G15: =IF(花费[[#This Row],[每月金额]]<>"",花费[[#This Row],[每月金额]]/Income,"") -> 0%
B16: 杂货 | C16: 食品 | D16: ¥100 | E16: 每周 | F16: =IF(花费[[#This Row],[金额]]>0,IF(花费[[#This Row],[频度]]<>"",ROUND(IF(花费[[#This Row],[频度]]="每月一次",花费[金额],IF(花费[[#This Row],[频度]]="每周",花费[[#This Row],[金额]]*4,IF(花费[[#This Row],[频度]]="每季度一次",花费[[#This Row],[金额]]/3,IF(花费[[#This Row],[频度]]="每 6 个月",花费[[#This Row],[金额]]/6,IF(花费[[#This Row],[频度]]="每年一次",花费[[#This Row],[金额]]/12,IF(花费[[#This Row],[频度]]="每隔一周",花费[[#This Row],[金额]]*2,IF(花费[[#This Row],[频度]]="每隔一个月",花费[[#This Row],[金额]]/2,""))))))),0),""),"") -> ¥400 | G16: =IF(花费[[#This Row],[每月金额]]<>"",花费[[#This Row],[每月金额]]/Income,"") -> 7%
B17: 咖啡 | C17: 食品 | D17: ¥25 | E17: 每周 | F17: =IF(花费[[#This Row],[金额]]>0,IF(花费[[#This Row],[频度]]<>"",ROUND(IF(花费[[#This Row],[频度]]="每月一次",花费[金额],IF(花费[[#This Row],[频度]]="每周",花费[[#This Row],[金额]]*4,IF(花费[[#This Row],[频度]]="每季度一次",花费[[#This Row],[金额]]/3,IF(花费[[#This Row],[频度]]="每 6 个月",花费[[#This Row],[金额]]/6,IF(花费[[#This Row],[频度]]="每年一次",花费[[#This Row],[金额]]/12,IF(花费[[#This Row],[频度]]="每隔一周",花费[[#This Row],[金额]]*2,IF(花费[[#This Row],[频度]]="每隔一个月",花费[[#This Row],[金额]]/2,""))))))),0),""),"") -> ¥100 | G17: =IF(花费[[#This Row],[每月金额]]<>"",花费[[#This Row],[每月金额]]/Income,"") -> 2%
B18: 攀岩装备 | C18: 娱乐 | D18: ¥170 | E18: 每年一次 | F18: =IF(花费[[#This Row],[金额]]>0,IF(花费[[#This Row],[频度]]<>"",ROUND(IF(花费[[#This Row],[频度]]="每月一次",花费[金额],IF(花费[[#This Row],[频度]]="每周",花费[[#This Row],[金额]]*4,IF(花费[[#This Row],[频度]]="每季度一次",花费[[#This Row],[金额]]/3,IF(花费[[#This Row],[频度]]="每 6 个月",花费[[#This Row],[金额]]/6,IF(花费[[#This Row],[频度]]="每年一次",花费[[#This Row],[金额]]/12,IF(花费[[#This Row],[频度]]="每隔一周",花费[[#This Row],[金额]]*2,IF(花费[[#This Row],[频度]]="每隔一个月",花费[[#This Row],[金额]]/2,""))))))),0),""),"") -> ¥14 | G18: =IF(花费[[#This Row],[每月金额]]<>"",花费[[#This Row],[每月金额]]/Income,"") -> 0%
B19: 健身会员 | C19: 杂项 | D19: ¥60 | E19: 每月一次 | F19: =IF(花费[[#This Row],[金额]]>0,IF(花费[[#This Row],[频度]]<>"",ROUND(IF(花费[[#This Row],[频度]]="每月一次",花费[金额],IF(花费[[#This Row],[频度]]="每周",花费[[#This Row],[金额]]*4,IF(花费[[#This Row],[频度]]="每季度一次",花费[[#This Row],[金额]]/3,IF(花费[[#This Row],[频度]]="每 6 个月",花费[[#This Row],[金额]]/6,IF(花费[[#This Row],[频度]]="每年一次",花费[[#This Row],[金额]]/12,IF(花费[[#This Row],[频度]]="每隔一周",花费[[#This Row],[金额]]*2,IF(花费[[#This Row],[频度]]="每隔一个月",花费[[#This Row],[金额]]/2,""))))))),0),""),"") -> ¥60 | G19: =IF(花费[[#This Row],[每月金额]]<>"",花费[[#This Row],[每月金额]]/Income,"") -> 1%
B20: 耳机 | C20: 娱乐 | D20: ¥50 | E20: 每年一次 | F20: =IF(花费[[#This Row],[金额]]>0,IF(花费[[#This Row],[频度]]<>"",ROUND(IF(花费[[#This Row],[频度]]="每月一次",花费[金额],IF(花费[[#This Row],[频度]]="每周",花费[[#This Row],[金额]]*4,IF(花费[[#This Row],[频度]]="每季度一次",花费[[#This Row],[金额]]/3,IF(花费[[#This Row],[频度]]="每 6 个月",花费[[#This Row],[金额]]/6,IF(花费[[#This Row],[频度]]="每年一次",花费[[#This Row],[金额]]/12,IF(花费[[#This Row],[频度]]="每隔一周",花费[[#This Row],[金额]]*2,IF(花费[[#This Row],[频度]]="每隔一个月",花费[[#This Row],[金额]]/2,""))))))),0),""),"") -> ¥4 | G20: =IF(花费[[#This Row],[每月金额]]<>"",花费[[#This Row],[每月金额]]/Income,"") -> 0%
B21: 理发 | C21: 杂项 | D21: ¥70 | E21: 每月一次 | F21: =IF(花费[[#This Row],[金额]]>0,IF(花费[[#This Row],[频度]]<>"",ROUND(IF(花费[[#This Row],[频度]]="每月一次",花费[金额],IF(花费[[#This Row],[频度]]="每周",花费[[#This Row],[金额]]*4,IF(花费[[#This Row],[频度]]="每季度一次",花费[[#This Row],[金额]]/3,IF(花费[[#This Row],[频度]]="每 6 个月",花费[[#This Row],[金额]]/6,IF(花费[[#This Row],[频度]]="每年一次",花费[[#This Row],[金额]]/12,IF(花费[[#This Row],[频度]]="每隔一周",花费[[#This Row],[金额]]*2,IF(花费[[#This Row],[频度]]="每隔一个月",花费[[#This Row],[金额]]/2,""))))))),0),""),"") -> ¥70 | G21: =IF(花费[[#This Row],[每月金额]]<>"",花费[[#This Row],[每月金额]]/Income,"") -> 1%
B22: 电子游戏 | C22: 娱乐 | D22: ¥100 | E22: 每月一次 | F22: =IF(花费[[#This Row],[金额]]>0,IF(花费[[#This Row],[频度]]<>"",ROUND(IF(花费[[#This Row],[频度]]="每月一次",花费[金额],IF(花费[[#This Row],[频度]]="每周",花费[[#This Row],[金额]]*4,IF(花费[[#This Row],[频度]]="每季度一次",花费[[#This Row],[金额]]/3,IF(花费[[#This Row],[频度]]="每 6 个月",花费[[#This Row],[金额]]/6,IF(花费[[#This Row],[频度]]="每年一次",花费[[#This Row],[金额]]/12,IF(花费[[#This Row],[频度]]="每隔一周",花费[[#This Row],[金额]]*2,IF(花费[[#This Row],[频度]]="每隔一个月",花费[[#This Row],[金额]]/2,""))))))),0),""),"") -> ¥100 | G22: =IF(花费[[#This Row],[每月金额]]<>"",花费[[#This Row],[每月金额]]/Income,"") -> 2%
B23: 衣服 | C23: 杂项 | D23: ¥500 | E23: 每年一次 | F23: =IF(花费[[#This Row],[金额]]>0,IF(花费[[#This Row],[频度]]<>"",ROUND(IF(花费[[#This Row],[频度]]="每月一次",花费[金额],IF(花费[[#This Row],[频度]]="每周",花费[[#This Row],[金额]]*4,IF(花费[[#This Row],[频度]]="每季度一次",花费[[#This Row],[金额]]/3,IF(花费[[#This Row],[频度]]="每 6 个月",花费[[#This Row],[金额]]/6,IF(花费[[#This Row],[频度]]="每年一次",花费[[#This Row],[金额]]/12,IF(花费[[#This Row],[频度]]="每隔一周",花费[[#This Row],[金额]]*2,IF(花费[[#This Row],[频度]]="每隔一个月",花费[[#This Row],[金额]]/2,""))))))),0),""),"") -> ¥42 | G23: =IF(花费[[#This Row],[每月金额]]<>"",花费[[#This Row],[每月金额]]/Income,"") -> 1%

Sheet 数据 (hidden)
A1: 此表应保持隐藏状态
A2: 类别 | B2: 每个类别的金额 | C2: 占总额的百分比 | D2: 频度 | E2: 储蓄
A3: 家居 | B3: =IF(SUMIF(花费[类别],"家居",花费[每月金额])>0,SUMIF(花费[类别],"家居",花费[每月金额]),NA()) -> ¥1,660 | C3: =IF(B3>0,B3/Income,"") -> 29% | D3: 每周 | E3: =Income-SUM(花费[每月金额]) -> ¥2,777.00
A4: 娱乐 | B4: =IF(SUMIF(花费[类别],"娱乐",花费[每月金额])>0,SUMIF(花费[类别],"娱乐",花费[每月金额]),NA()) -> ¥188 | C4: 3% | D4: 每月一次
A5: 交通费 | B5: =IF(SUMIF(花费[类别],"交通费",花费[每月金额])>0,SUMIF(花费[类别],"交通费",花费[每月金额]),NA()) -> ¥350 | C5: 6% | D5: 每季度一次
A6: 食品 | B6: =IF(SUMIF(花费[类别],"食品",花费[每月金额])>0,SUMIF(花费[类别],"食品",花费[每月金额]),NA()) -> ¥500 | C6: 9% | D6: 每 6 个月
A7: 杂项 | B7: =IF(SUMIF(花费[类别],"杂项",花费[每月金额])>0,SUMIF(花费[类别],"杂项",花费[每月金额]),NA()) -> ¥263 | C7: 5% | D7: 每年一次
A8: 储蓄 | B8: =IF(E3>0,E3,NA()) -> ¥2,777 | C8: 48% | D8: 每隔一周
D9: 每隔一个月
B10: 总计： | C10: =SUM(C3:C8) -> 100%
